[Event "GER-ch Youth ODJM 2019"]
[Site "Willingen"]
[Date "2019.06.11"]
[Round "4.11"]
[White "Teichert, Felix"]
[Black "Tscheuschner, Georg"]
[Result "1/2-1/2"]
[ECO "B20"]
[WhiteElo "2027"]
[BlackElo "2113"]
[Annotator "NA"]
[PlyCount "105"]
[EventDate "2019.06.07"]
[EventType "swiss"]
[EventRounds "9"]
[EventCountry "GER"]
[SourceTitle "playchess.com"]
[Source "ChessBase"]
[SourceQuality "1"]
[TimeControl "40/5400+30:1800+30"]

1. e4 {[%emt 0:00:00]} c5 {[%emt 0:00:00]} 2. Ne2 {[%emt 0:00:00]} Nf6 {[%emt 0:01:30]} 3. Nbc3 {[%emt 0:00:00]} d6 {[%emt 0:02:21]} 4. g3 {[%emt 0:00:54]} Nc6 {[%emt 0:01:06]} 5. Bg2 {[%emt 0:00:17]} g6 {[%emt 0:00:33]} 6. O-O {[%emt 0:03:15]} Bg7 {[%emt 0:07:44]} 7. d3 {[%emt 0:02:34]} Bg4 {[%emt 0:08:16]} 8. h3 {[%emt 0:02:01]} Bd7 {[%emt 0:00:40]} 9. Nd5 {[%emt 0:02:21]} Qc8 {[%emt 0:13:15]} 10. Kh2 {[%emt 0:08:38]} h5 {[%emt 0:11:53]} 11. c3 {[%emt 0:07:07]} e6 {[%emt 0:15:03]} 12. Nxf6+ {[%emt 0:01:36]} Bxf6 {[%emt 0:00:02]} 13. d4 {[%emt 0:01:50]} cxd4 {[%emt 0:02:21]} 14. cxd4 {[%emt 0:00:45]} h4 {[%emt 0:06:13]} 15. g4 {[%emt 0:00:54]} e5 {[%emt 0:00:41]} 16. d5 {[%emt 0:08:42]} Nb4 {[%emt 0:04:54]} 17. Bd2 {[%emt 0:06:43]} Nd3 {[%emt 0:00:46]} 18. Qb3 {[%emt 0:06:26]} Nc5 {[%emt 0:01:01]} 19. Qf3 {[%emt 0:00:45]} Be7 {[%emt 0:02:09]} 20. Rfc1 {[%emt 0:03:51]} Qd8 {[%emt 0:00:09]} 21. Rc2 {[%emt 0:04:51]} a5 {[%emt 0:01:06]} 22. b3 {[%emt 0:06:00]} Bg5 {[%emt 0:00:49]} 23. Be3 {[%emt 0:02:30]} Bxe3 {[%emt 0:04:06]} 24. Qxe3 {[%emt 0:00:05]} Bb5 {[%emt 0:01:57]} 25. Nc3 {[%emt 0:04:19]} Bd3 {[%emt 0:00:04]} 26. Rd2 {[%emt 0:00:27]} Ba6 {[%emt 0:00:08]} 27. Bf1 {[%emt 0:00:47]} O-O {[%emt 0:02:54]} 28. Bxa6 {[%emt 0:02:46]} bxa6 {[%emt 0:00:12]} 29. Qh6 {[%emt 0:01:11]} Qf6 {[%emt 0:00:25]} 30. Kg2 {[%emt 0:00:50]} Rac8 {[%emt 0:00:34]} 31. Rc1 {[%emt 0:02:37]} Qf4 {[%emt 0:00:34]} 32. Qxf4 {[%emt 0:00:55]} exf4 {[%emt 0:00:01]} 33. Kf3 {[%emt 0:01:58]} g5 {[%emt 0:00:33]} 34. Rcc2 {[%emt 0:11:02]} Kg7 {[%emt 0:05:39]} 35. Ne2 {[%emt 0:02:07]} Nd3 {[%emt 0:01:37]} 36. Rxd3 {[%emt 0:02:40]} Rxc2 {[%emt 0:00:04]} 37. Nd4 {[%emt 0:00:07]} Rxa2 {[%emt 0:00:28]} 38. Nf5+ {[%emt 0:00:07]} Kf6 {[%emt 0:00:57]} 39. Nxd6 {[%emt 0:00:38]} Rb8 {[%emt 0:02:53]} 40. Nc4 {[%emt 0:03:19]} a4 {[%emt 0:00:55]} 41. e5+ {[%emt 0:05:09]} Kg7 {[%emt 0:13:32]} 42. bxa4 {[%emt 0:08:01]} Rxa4 {[%emt 0:01:04]} 43. Nd6 {[%emt 0:00:59]} Rab4 {[%emt 0:01:23]} 44. Nf5+ {[%emt 0:01:06]} Kf8 {[%emt 0:01:40]} 45. Nd4 {[%emt 0:00:04]} Rc4 {[%emt 0:03:12]} 46. Nf5 {[%emt 0:07:26]} Rbc8 {[%emt 0:01:56]} 47. e6 {[%emt 0:03:15]} fxe6 {[%emt 0:00:28]} 48. dxe6 {[%emt 0:00:04]} Rc3 {[%emt 0:00:24]} 49. e7+ {[%emt 0:00:24]} Ke8 {[%emt 0:01:04]} 50. Nd6+ {[%emt 0:00:39]} Kd7 {[%emt 0:00:46]} 51. e8=Q+ {[%emt 0:01:20]} Rxe8 {[%emt 0:00:16]} 52. Rxc3 {[%emt 0:00:26]} Kxd6 {[%emt 0:00:05]} 53. Ra3 {[%emt 0:01:26] normal} 1/2-1/2

[Event "GER-ch Youth ODJM 2019"]
[Site "Willingen"]
[Date "2019.06.11"]
[Round "4.12"]
[White "Stemmler, Fabian"]
[Black "Fistoul, Boris"]
[Result "0-1"]
[ECO "A40"]
[WhiteElo "2014"]
[BlackElo "1918"]
[Annotator "NA"]
[PlyCount "43"]
[EventDate "2019.06.07"]
[EventType "swiss"]
[EventRounds "9"]
[EventCountry "GER"]
[SourceTitle "playchess.com"]
[Source "ChessBase"]
[SourceQuality "1"]
[TimeControl "40/5400+30:1800+30"]

1. d4 {[%emt 0:00:00]} b6 {[%emt 0:00:56]} 2. e4 {[%emt 0:00:46]} Bb7 {[%emt 0:00:36]} 3. Nc3 {[%emt 0:01:16]} e6 {[%emt 0:01:43]} 4. Bd3 {[%emt 0:06:35]} Nf6 {[%emt 0:03:22]} 5. Nge2 {[%emt 0:03:51]} Be7 {[%emt 0:01:46]} 6. O-O {[%emt 0:01:14]} O-O {[%emt 0:01:12]} 7. Bf4 {[%emt 0:06:16]} d6 {[%emt 0:03:52]} 8. h3 {[%emt 0:04:06]} Nbd7 {[%emt 0:03:54]} 9. Bh2 {[%emt 0:09:51]} Re8 {[%emt 0:07:38]} 10. e5 {[%emt 0:17:15]} dxe5 {[%emt 0:03:46]} 11. dxe5 {[%emt 0:00:05]} Nd5 {[%emt 0:00:26]} 12. Nxd5 {[%emt 0:00:28]} Bxd5 {[%emt 0:01:16]} 13. c4 {[%emt 0:07:56]} Bb7 {[%emt 0:02:31]} 14. Qc2 {[%emt 0:00:24]} h6 {[%emt 0:02:45]} 15. Rad1 {[%emt 0:00:19]} c6 {[%emt 0:03:01]} 16. Nc3 {[%emt 0:03:24]} Qc7 {[%emt 0:02:32]} 17. f4 {[%emt 0:04:03]} Rad8 {[%emt 0:14:05]} 18. f5 {[%emt 0:13:00]} Nxe5 {[%emt 0:07:29]} 19. Ne4 {[%emt 0:06:58]} exf5 {[%emt 0:04:40]} 20. Rxf5 {[%emt 0:00:24]} f6 {[%emt 0:01:25]} 21. Rff1 {[%emt 0:04:12]} c5 {[%emt 0:05:44]} 22. Qc3 {[%emt 0:02:45] normal} 0-1

[Event "GER-ch Youth ODJM 2019"]
[Site "Willingen"]
[Date "2019.06.11"]
[Round "4.13"]
[White "Hofmann, Lorenz"]
[Black "Wuebker, Paul-Luca"]
[Result "1/2-1/2"]
[ECO "B77"]
[WhiteElo "2002"]
[BlackElo "2035"]
[Annotator "NA"]
[PlyCount "95"]
[EventDate "2019.06.07"]
[EventType "swiss"]
[EventRounds "9"]
[EventCountry "GER"]
[SourceTitle "playchess.com"]
[Source "ChessBase"]
[SourceQuality "1"]
[TimeControl "40/5400+30:1800+30"]

1. e4 {[%emt 0:00:00]} c5 {[%emt 0:00:00]} 2. Nf3 {[%emt 0:00:00]} d6 {[%emt 0:00:00]} 3. d4 {[%emt 0:00:00]} cxd4 {[%emt 0:00:00]} 4. Nxd4 {[%emt 0:00:00]} Nf6 {[%emt 0:00:00]} 5. Nc3 {[%emt 0:00:00]} g6 {[%emt 0:00:01]} 6. Be3 {[%emt 0:00:00]} Bg7 {[%emt 0:00:06]} 7. f3 {[%emt 0:00:00]} O-O {[%emt 0:00:06]} 8. Bc4 {[%emt 0:00:25]} Nc6 {[%emt 0:00:04]} 9. Qd2 {[%emt 0:00:15]} Bd7 {[%emt 0:00:06]} 10. h4 {[%emt 0:01:38]} h5 {[%emt 0:00:25]} 11. O-O-O {[%emt 0:01:27]} Ne5 {[%emt 0:01:20]} 12. Bb3 {[%emt 0:04:49]} a5 {[%emt 0:00:38]} 13. a4 {[%emt 0:03:11]} Rc8 {[%emt 0:05:28]} 14. Bh6 {[%emt 0:03:05]} Nc4 {[%emt 0:06:03]} 15. Bxc4 {[%emt 0:08:10]} Rxc4 {[%emt 0:01:02]} 16. Bxg7 {[%emt 0:00:05]} Kxg7 {[%emt 0:00:10]} 17. g4 {[%emt 0:13:13]} hxg4 {[%emt 0:11:32]} 18. h5 {[%emt 0:02:51]} Rh8 {[%emt 0:01:08]} 19. hxg6 {[%emt 0:03:34]} fxg6 {[%emt 0:03:13]} 20. f4 {[%emt 0:11:51]} e5 {[%emt 0:13:50]} 21. fxe5 {[%emt 0:04:06]} dxe5 {[%emt 0:01:21]} 22. Ne6+ {[%emt 0:00:53]} Bxe6 {[%emt 0:00:13]} 23. Qxd8 {[%emt 0:00:03]} Rxd8 {[%emt 0:00:06]} 24. Rxd8 {[%emt 0:00:03]} Nxe4 {[%emt 0:00:06]} 25. Nxe4 {[%emt 0:01:38]} Rxe4 {[%emt 0:00:07]} 26. b3 {[%emt 0:01:16]} Kf6 {[%emt 0:02:57]} 27. Rd6 {[%emt 0:01:40]} Kf5 {[%emt 0:06:08]} 28. Rh8 {[%emt 0:12:05]} g3 {[%emt 0:01:03]} 29. Rf8+ {[%emt 0:01:04]} Kg5 {[%emt 0:00:23]} 30. Rxe6 {[%emt 0:00:40]} g2 {[%emt 0:03:56]} 31. Rxg6+ {[%emt 0:00:05]} Kxg6 {[%emt 0:00:06]} 32. Rg8+ {[%emt 0:00:02]} Kf5 {[%emt 0:01:30]} 33. Rxg2 {[%emt 0:00:11]} Rg4 {[%emt 0:02:59]} 34. Rf2+ {[%emt 0:01:52]} Ke6 {[%emt 0:02:25]} 35. Kd2 {[%emt 0:00:22]} b6 {[%emt 0:05:12]} 36. Rh2 {[%emt 0:00:47]} Rg6 {[%emt 0:00:40]} 37. Kd3 {[%emt 0:00:44]} Kd5 {[%emt 0:02:01]} 38. Rh3 {[%emt 0:02:06]} Rf6 {[%emt 0:02:00]} 39. Rh4 {[%emt 0:07:07]} Re6 {[%emt 0:04:27]} 40. Rh8 {[%emt 0:05:54]} Rg6 {[%emt 0:02:48]} 41. Rd8+ {[%emt 0:31:32]} Kc5 {[%emt 0:31:17]} 42. Ke4 {[%emt 0:01:30]} Rg2 {[%emt 0:10:54]} 43. Kxe5 {[%emt 0:01:33]} Re2+ {[%emt 0:00:38]} 44. Kf4 {[%emt 0:00:07]} Kb4 {[%emt 0:04:31]} 45. Rc8 {[%emt 0:00:54]} Ka3 {[%emt 0:01:00]} 46. Kf3 {[%emt 0:00:39]} Re6 {[%emt 0:00:16]} 47. Rc4 {[%emt 0:04:11]} Kb2 {[%emt 0:03:15]} 48. Rc7 {[%emt 0:00:06] normal} 1/2-1/2

[Event "GER-ch Youth ODJM 2019"]
[Site "Willingen"]
[Date "2019.06.11"]
[Round "4.14"]
[White "von Estorff, Jacob"]
[Black "Schlick, Stefan"]
[Result "1-0"]
[ECO "C44"]
[WhiteElo "2041"]
[BlackElo "2017"]
[Annotator "NA"]
[PlyCount "54"]
[EventDate "2019.06.07"]
[EventType "swiss"]
[EventRounds "9"]
[EventCountry "GER"]
[SourceTitle "playchess.com"]
[Source "ChessBase"]
[SourceQuality "1"]
[TimeControl "40/5400+30:1800+30"]

1. e4 {[%emt 0:00:00]} e5 {[%emt 0:00:00]} 2. Nf3 {[%emt 0:00:05]} Nc6 {[%emt 0:00:09]} 3. d4 {[%emt 0:01:21]} exd4 {[%emt 0:00:07]} 4. Nxd4 {[%emt 0:00:05]} Nf6 {[%emt 0:00:36]} 5. Nxc6 {[%emt 0:02:17]} bxc6 {[%emt 0:00:14]} 6. Bd3 {[%emt 0:02:09]} d5 {[%emt 0:01:29]} 7. e5 {[%emt 0:02:57]} Nd7 {[%emt 0:15:30]} 8. O-O {[%emt 0:01:27]} Nc5 {[%emt 0:01:44]} 9. f4 {[%emt 0:03:47]} Nxd3 {[%emt 0:03:13]} 10. cxd3 {[%emt 0:01:42]} g6 {[%emt 0:05:01]} 11. Qc2 {[%emt 0:08:04]} c5 {[%emt 0:08:32]} 12. h3 {[%emt 0:07:14]} h5 {[%emt 0:02:17]} 13. b4 {[%emt 0:06:40]} cxb4 {[%emt 0:04:21]} 14. Qc6+ {[%emt 0:01:46]} Bd7 {[%emt 0:14:28]} 15. Qxd5 {[%emt 0:00:22]} Be6 {[%emt 0:00:34]} 16. Qc6+ {[%emt 0:00:14]} Bd7 {[%emt 0:01:45]} 17. Qf3 {[%emt 0:00:37]} Bc5+ {[%emt 0:10:08]} 18. Be3 {[%emt 0:00:20]} Bxe3+ {[%emt 0:02:28]} 19. Qxe3 {[%emt 0:00:05]} O-O {[%emt 0:04:58]} 20. Nd2 {[%emt 0:00:53]} Bb5 {[%emt 0:06:18]} 21. Rf3 {[%emt 0:02:20]} f5 {[%emt 0:02:32]} 22. exf6 {[%emt 0:02:18]} Qxf6 {[%emt 0:00:15]} 23. Rc1 {[%emt 0:11:11]} Rfd8 {[%emt 0:01:17]} 24. Nc4 {[%emt 0:08:40]} Bxc4 {[%emt 0:02:45]} 25. Rxc4 {[%emt 0:00:18]} Re8 {[%emt 0:01:54]} 26. Qc5 {[%emt 0:01:28]} Qb6 {[%emt 0:04:26] normal} 27. Rg3 {[%emt 0:06:03] normal} Kf7 {[%emt 0:03:28] normal} 1-0

[Event "GER-ch Youth ODJM 2019"]
[Site "Willingen"]
[Date "2019.06.11"]
[Round "4.15"]
[White "Nasoyan, Maksim"]
[Black "Wachinger, David"]
[Result "1-0"]
[ECO "E92"]
[WhiteElo "1877"]
[BlackElo "2066"]
[Annotator "NA"]
[PlyCount "105"]
[EventDate "2019.06.07"]
[EventType "swiss"]
[EventRounds "9"]
[EventCountry "GER"]
[SourceTitle "playchess.com"]
[Source "ChessBase"]
[SourceQuality "1"]
[TimeControl "40/5400+30:1800+30"]

1. d4 {[%emt 0:00:00]} Nf6 {[%emt 0:00:00]} 2. c4 {[%emt 0:00:00]} g6 {[%emt 0:00:00]} 3. Nc3 {[%emt 0:00:00]} Bg7 {[%emt 0:00:01]} 4. e4 {[%emt 0:00:00]} d6 {[%emt 0:00:10]} 5. Nf3 {[%emt 0:00:08]} O-O {[%emt 0:00:13]} 6. Be2 {[%emt 0:00:03]} e5 {[%emt 0:00:16]} 7. d5 {[%emt 0:00:04]} a5 {[%emt 0:00:33]} 8. Bg5 {[%emt 0:01:20]} h6 {[%emt 0:01:18]} 9. Bh4 {[%emt 0:00:04]} Qe8 {[%emt 0:12:32]} 10. Nd2 {[%emt 0:00:13]} Bd7 {[%emt 0:04:11]} 11. b3 {[%emt 0:00:35]} Na6 {[%emt 0:00:25]} 12. O-O {[%emt 0:01:07]} Nh7 {[%emt 0:03:50]} 13. f3 {[%emt 0:00:21]} h5 {[%emt 0:18:43]} 14. Bf2 {[%emt 0:00:11]} f5 {[%emt 0:06:36]} 15. a3 {[%emt 0:01:37]} f4 {[%emt 0:11:23]} 16. b4 {[%emt 0:10:58]} g5 {[%emt 0:02:13]} 17. c5 {[%emt 0:02:12]} Qg6 {[%emt 0:04:43]} 18. c6 {[%emt 0:09:15]} bxc6 {[%emt 0:03:00]} 19. dxc6 {[%emt 0:01:10]} Bc8 {[%emt 0:00:00]} 20. Nd5 {[%emt 0:00:56]} Rf7 {[%emt 0:04:29]} 21. b5 {[%emt 0:10:44]} Nc5 {[%emt 0:00:34]} 22. b6 {[%emt 0:00:07]} cxb6 {[%emt 0:02:07]} 23. Nxb6 {[%emt 0:03:11]} Rb8 {[%emt 0:00:01]} 24. Nxc8 {[%emt 0:01:38]} Rxc8 {[%emt 0:00:01]} 25. Bxc5 {[%emt 0:01:04]} dxc5 {[%emt 0:01:15]} 26. Bc4 {[%emt 0:00:06]} Qxc6 {[%emt 0:04:51]} 27. Qb3 {[%emt 0:02:21]} Rcc7 {[%emt 0:00:15]} 28. Bd5 {[%emt 0:03:04]} Qe8 {[%emt 0:00:51]} 29. Rac1 {[%emt 0:01:41]} Bf8 {[%emt 0:00:17]} 30. Qb6 {[%emt 0:03:00]} Kg7 {[%emt 0:01:52]} 31. Bxf7 {[%emt 0:00:07]} Rxf7 {[%emt 0:00:15]} 32. Nc4 {[%emt 0:02:46]} g4 {[%emt 0:02:57]} 33. Nd6 {[%emt 0:01:58]} Bxd6 {[%emt 0:00:09]} 34. Qxd6 {[%emt 0:00:04]} Rf6 {[%emt 0:00:20]} 35. Qc7+ {[%emt 0:00:53]} Kh6 {[%emt 0:00:08]} 36. Rxc5 {[%emt 0:00:37]} gxf3 {[%emt 0:01:45]} 37. gxf3 {[%emt 0:04:55]} Re6 {[%emt 0:05:02]} 38. Rxa5 {[%emt 0:06:58]} Ng5 {[%emt 0:00:44]} 39. Kf2 {[%emt 0:11:43]} Re7 {[%emt 0:09:27]} 40. Qd6+ {[%emt 0:03:37]} Kh7 {[%emt 0:00:52]} 41. Rc1 {[%emt 0:31:03]} Nf7 {[%emt 0:07:13]} 42. Qf6 {[%emt 0:00:00]} Re6 {[%emt 0:00:14]} 43. Qf5+ {[%emt 0:00:00]} Kh8 {[%emt 0:00:06]} 44. Rac5 {[%emt 0:00:00]} Qd7 {[%emt 0:01:03]} 45. Rc8+ {[%emt 0:00:00]} Nd8 {[%emt 0:00:03]} 46. Qxh5+ {[%emt 0:00:00]} Kg8 {[%emt 0:00:11]} 47. Rg1+ {[%emt 0:00:00]} Kf8 {[%emt 0:00:07]} 48. Qh8+ {[%emt 0:00:00]} Ke7 {[%emt 0:00:07]} 49. Rxd8 {[%emt 0:00:00]} Qa7+ {[%emt 0:03:06]} 50. Kg2 {[%emt 0:00:00]} Rg6+ {[%emt 0:00:39]} 51. Kh3 {[%emt 0:00:00]} Qxg1 {[%emt 0:00:17]} 52. Qf8+ {[%emt 0:00:00]} Ke6 {[%emt 0:00:10]} 53. Rd6# {[%emt 0:00:00] normal} 1-0

[Event "GER-ch Youth ODJM 2019"]
[Site "Willingen"]
[Date "2019.06.11"]
[Round "4.16"]
[White "Brunner, Tobias"]
[Black "Reimer, Philip"]
[Result "0-1"]
[ECO "B23"]
[WhiteElo "2017"]
[BlackElo "1891"]
[Annotator "NA"]
[PlyCount "122"]
[EventDate "2019.06.07"]
[EventType "swiss"]
[EventRounds "9"]
[EventCountry "GER"]
[SourceTitle "playchess.com"]
[Source "ChessBase"]
[SourceQuality "1"]
[TimeControl "40/5400+30:1800+30"]

1. e4 {[%emt 0:00:00]} c5 {[%emt 0:00:00]} 2. Nc3 {[%emt 0:00:00]} Nc6 {[%emt 0:00:00]} 3. f4 {[%emt 0:00:20]} g6 {[%emt 0:00:34]} 4. Nf3 {[%emt 0:01:34]} Bg7 {[%emt 0:00:07]} 5. Bc4 {[%emt 0:03:28]} e6 {[%emt 0:02:05]} 6. O-O {[%emt 0:01:38]} Nge7 {[%emt 0:00:22]} 7. d3 {[%emt 0:00:57]} d5 {[%emt 0:00:52]} 8. Bb3 {[%emt 0:00:59]} O-O {[%emt 0:02:47]} 9. a3 {[%emt 0:05:59]} Rb8 {[%emt 0:08:09]} 10. Ne2 {[%emt 0:08:14]} b5 {[%emt 0:05:09]} 11. c3 {[%emt 0:03:22]} a5 {[%emt 0:07:42]} 12. Bc2 {[%emt 0:07:34]} b4 {[%emt 0:04:32]} 13. axb4 {[%emt 0:02:14]} axb4 {[%emt 0:00:24]} 14. Qe1 {[%emt 0:03:06]} Qb6 {[%emt 0:08:40]} 15. Qh4 {[%emt 0:07:39]} dxe4 {[%emt 0:05:18]} 16. Ng5 {[%emt 0:01:58]} h6 {[%emt 0:00:19]} 17. Nxe4 {[%emt 0:00:25]} Nf5 {[%emt 0:01:27]} 18. Qf2 {[%emt 0:05:26]} Rd8 {[%emt 0:18:23]} 19. Qxc5 {[%emt 0:03:21]} Qb7 {[%emt 0:02:08]} 20. Qf2 {[%emt 0:06:35]} b3 {[%emt 0:06:30]} 21. Nc5 {[%emt 0:04:28]} Qb5 {[%emt 0:01:09]} 22. Nxb3 {[%emt 0:00:56]} Bb7 {[%emt 0:01:14]} 23. Nc5 {[%emt 0:01:12]} Ba8 {[%emt 0:03:06]} 24. Kh1 {[%emt 0:03:30]} e5 {[%emt 0:02:30]} 25. fxe5 {[%emt 0:02:32]} Nxe5 {[%emt 0:00:55]} 26. h3 {[%emt 0:02:25]} Rbc8 {[%emt 0:04:37]} 27. d4 {[%emt 0:00:33]} Qxe2 {[%emt 0:00:22]} 28. Bxf5 {[%emt 0:00:48]} Qxf2 {[%emt 0:01:53]} 29. Rxf2 {[%emt 0:00:46]} gxf5 {[%emt 0:00:28]} 30. Rxf5 {[%emt 0:02:00]} Ng6 {[%emt 0:02:34]} 31. Ra7 {[%emt 0:01:30]} Bxg2+ {[%emt 0:00:32]} 32. Kh2 {[%emt 0:00:33]} Bd5 {[%emt 0:00:21]} 33. Be3 {[%emt 0:06:22]} Re8 {[%emt 0:00:38]} 34. Rxd5 {[%emt 0:01:49]} Rxe3 {[%emt 0:00:12]} 35. Rdd7 {[%emt 0:00:18]} Rf3 {[%emt 0:04:31]} 36. Ne4 {[%emt 0:01:51]} Rb8 {[%emt 0:01:22]} 37. b4 {[%emt 0:01:52]} Nf8 {[%emt 0:02:05]} 38. Re7 {[%emt 0:01:07]} Ne6 {[%emt 0:00:01]} 39. Kg2 {[%emt 0:02:09]} Re3 {[%emt 0:01:47]} 40. Nc5 {[%emt 0:06:05]} Nf4+ {[%emt 0:00:47]} 41. Kf2 {[%emt 0:30:13]} Re4 42. Re6 Rxe6 {[%emt 0:30:42]} 43. Re7 {[%emt 0:00:43]} Nd5 {[%emt 0:01:42]} 44. Rd7 {[%emt 0:02:50]} Nxc3 {[%emt 0:00:28]} 45. Nd3 {[%emt 0:00:00]} Bf8 {[%emt 0:00:00]} 46. Ne5 {[%emt 0:00:00]} Ne4+ {[%emt 0:00:00]} 47. Ke3 {[%emt 0:00:00]} Nd6 {[%emt 0:00:00] Nc6 Rb6+} 48. d5 {[%emt 0:00:00]} Kg7 {[%emt 0:00:00]} 49. Ra7 {[%emt 0:00:00]} Nb7 {[%emt 0:00:00]} 50. Ra4 {[%emt 0:00:00]} Kf6 {[%emt 0:00:00]} 51. Ke4 {[%emt 0:00:00]} Bd6 {[%emt 0:00:00]} 52. Kd4 {[%emt 0:00:00]} Kg5 {[%emt 0:00:00]} 53. Kc4 {[%emt 0:00:00]} f5 {[%emt 0:00:00] Nd4 Nd8} 54. b5 {[%emt 0:00:00] Nf7 Ra7 Ne5+ Kc3} Kf6 {[%emt 0:04:48]} 55. Ra2 {[%emt 0:00:00]} Bc5 {[%emt 0:00:54]} 56. Rb2 {[%emt 0:00:00]} Bd4 {[%emt 0:00:31]} 57. Kxd4 {[%emt 0:00:00] Nd7 Kc4} f4 {[%emt 0:00:57]} 58. Ra2 {[%emt 0:00:00]} Kf5 {[%emt 0:01:24]} 59. Ra7 {[%emt 0:00:00] Rbd6 Kd4} h5 {[%emt 0:00:29] Rc7 f3 Ke3 Rxd5+} 60. b6 {[%emt 0:07:17] normal Nxb6+ Kxf3 Rd3+ Kg2 Nd5} Rc6 {[%emt 0:00:19] Kg7} 61. h4 {[%emt 0:00:38] Nf4+ Kf2 Rh3} Rc4+ {[%emt 0:00:51] normal Ng6} 0-1

[Event "GER-ch Youth ODJM 2019"]
[Site "Willingen"]
[Date "2019.06.12"]
[Round "5.1"]
[White "Wichert, Eddi"]
[Black "Astner, Sebastian"]
[Result "0-1"]
[ECO "B12"]
[WhiteElo "1702"]
[BlackElo "1870"]
[Annotator "NA"]
[PlyCount "80"]
[EventDate "2019.06.07"]
[EventType "swiss"]
[EventRounds "9"]
[EventCountry "GER"]
[SourceTitle "playchess.com"]
[Source "ChessBase"]
[SourceQuality "1"]
[TimeControl "40/5400+30:1800+30"]

1. e4 {[%emt 0:00:00]} c6 {[%emt 0:00:00]} 2. d4 {[%emt 0:00:00]} d5 {[%emt 0:00:00]} 3. e5 {[%emt 0:00:00]} Bf5 {[%emt 0:00:00]} 4. Nf3 {[%emt 0:00:00]} e6 {[%emt 0:00:00]} 5. Be2 {[%emt 0:00:09]} Nd7 {[%emt 0:00:14]} 6. O-O {[%emt 0:00:30]} h6 {[%emt 0:00:26]} 7. c4 {[%emt 0:07:54]} Ne7 {[%emt 0:02:58]} 8. Be3 {[%emt 0:07:26]} dxc4 {[%emt 0:03:24]} 9. Bxc4 {[%emt 0:03:32]} Nb6 {[%emt 0:00:36]} 10. b3 {[%emt 0:05:43]} Ned5 {[%emt 0:02:12]} 11. Bd3 {[%emt 0:06:16]} Bxd3 {[%emt 0:05:19]} 12. Qxd3 {[%emt 0:00:09]} Be7 {[%emt 0:02:19]} 13. Nbd2 {[%emt 0:02:42]} O-O {[%emt 0:04:40]} 14. Nc4 {[%emt 0:02:09]} Rc8 {[%emt 0:03:59]} 15. Rac1 {[%emt 0:04:59]} c5 {[%emt 0:07:34]} 16. Rfd1 {[%emt 0:08:39]} cxd4 {[%emt 0:05:27]} 17. Bxd4 {[%emt 0:04:49]} Nxc4 {[%emt 0:03:19]} 18. bxc4 {[%emt 0:06:36]} Nb4 {[%emt 0:01:08]} 19. Qe4 {[%emt 0:08:56]} Qc7 {[%emt 0:02:10]} 20. a3 {[%emt 0:03:20]} Nc6 {[%emt 0:01:01]} 21. Rc3 {[%emt 0:03:52]} Rfd8 {[%emt 0:03:20]} 22. Rdd3 {[%emt 0:04:54]} Nxd4 {[%emt 0:03:10]} 23. Nxd4 {[%emt 0:01:52]} a6 {[%emt 0:02:19]} 24. h3 {[%emt 0:00:43]} Bc5 {[%emt 0:02:10]} 25. Nc2 {[%emt 0:02:11]} Rxd3 {[%emt 0:04:26]} 26. Rxd3 {[%emt 0:00:36]} Rd8 {[%emt 0:01:46]} 27. Rb3 {[%emt 0:06:05]} b6 {[%emt 0:03:23]} 28. Ne3 {[%emt 0:02:01]} Rd4 {[%emt 0:02:07]} 29. Qa8+ {[%emt 0:01:09]} Kh7 {[%emt 0:00:08]} 30. Qxa6 {[%emt 0:01:23]} Qxe5 {[%emt 0:01:00]} 31. Qb5 {[%emt 0:01:58]} Rd2 {[%emt 0:01:49]} 32. Rb1 {[%emt 0:01:23]} Qf4 {[%emt 0:01:53]} 33. Rf1 {[%emt 0:03:57]} Bxe3 {[%emt 0:09:03]} 34. fxe3 {[%emt 0:00:21]} Qxe3+ {[%emt 0:01:40]} 35. Kh1 {[%emt 0:00:17]} Qe2 {[%emt 0:01:15]} 36. Rg1 {[%emt 0:00:04]} Qf2 {[%emt 0:01:22]} 37. a4 {[%emt 0:00:20]} Rb2 {[%emt 0:02:50]} 38. Qc6 {[%emt 0:00:24]} Qf5 {[%emt 0:01:45]} 39. Rc1 {[%emt 0:01:28]} Qf4 {[%emt 0:04:19]} 40. Re1 {[%emt 0:00:38]} Rb4 {[%emt 0:01:32] normal} 0-1

[Event "GER-ch Youth ODJM 2019"]
[Site "Willingen"]
[Date "2019.06.12"]
[Round "5.2"]
[White "Sinka, Silas"]
[Black "Navarro Jahnke, Eric"]
[Result "1-0"]
[ECO "D30"]
[WhiteElo "1292"]
[BlackElo "1259"]
[Annotator "NA"]
[PlyCount "61"]
[EventDate "2019.06.07"]
[EventType "swiss"]
[EventRounds "9"]
[EventCountry "GER"]
[SourceTitle "playchess.com"]
[Source "ChessBase"]
[SourceQuality "1"]
[TimeControl "40/5400+30:1800+30"]

1. d4 {[%emt 0:00:00]} d5 {[%emt 0:00:00]} 2. c4 {[%emt 0:00:00]} e6 {[%emt 0:00:06]} 3. e3 {[%emt 0:00:00]} c6 {[%emt 0:00:16]} 4. Nf3 {[%emt 0:00:00]} Nd7 {[%emt 0:00:20]} 5. b3 {[%emt 0:00:00]} Bd6 {[%emt 0:00:19]} 6. Bb2 {[%emt 0:00:00]} f5 {[%emt 0:00:42]} 7. Ne5 {[%emt 0:00:45]} Ngf6 {[%emt 0:02:51]} 8. Nd2 {[%emt 0:00:12]} O-O {[%emt 0:01:09]} 9. Ndf3 {[%emt 0:00:30]} Ne4 {[%emt 0:00:52]} 10. c5 {[%emt 0:00:37]} Bc7 {[%emt 0:00:42]} 11. Bc1 {[%emt 0:04:27]} Rb8 {[%emt 0:02:17]} 12. b4 {[%emt 0:02:54]} Rf6 {[%emt 0:03:15]} 13. Bd3 {[%emt 0:01:04]} Rh6 {[%emt 0:01:04]} 14. Bb2 {[%emt 0:11:30]} Nxe5 15. Nxe5 {[%emt 0:00:31]} Bxe5 {[%emt 0:02:58]} 16. dxe5 {[%emt 0:00:08]} Bd7 {[%emt 0:01:36]} 17. f3 {[%emt 0:03:24]} Qh4+ {[%emt 0:01:38]} 18. g3 {[%emt 0:01:03]} Nxg3 {[%emt 0:00:22]} 19. hxg3 {[%emt 0:00:43]} Qxg3+ {[%emt 0:00:44]} 20. Kd2 {[%emt 0:00:57]} Qg2+ {[%emt 0:00:39]} 21. Qe2 {[%emt 0:00:32]} Qxh1 {[%emt 0:01:11]} 22. Rxh1 {[%emt 0:00:09]} Rxh1 {[%emt 0:00:07]} 23. f4 {[%emt 0:00:47]} Kf7 {[%emt 0:01:36]} 24. Qg2 {[%emt 0:00:31]} Rh6 {[%emt 0:00:35]} 25. Be2 {[%emt 0:00:11]} Rg8 {[%emt 0:01:51]} 26. Kd3 {[%emt 0:00:40]} Ke7 {[%emt 0:00:57]} 27. Bc3 {[%emt 0:00:33]} Rg6 {[%emt 0:00:24]} 28. Qh3 {[%emt 0:00:14]} h5 {[%emt 0:01:01]} 29. Qh4+ {[%emt 0:00:57]} Kf8 {[%emt 0:00:38]} 30. Qd8+ {[%emt 0:00:36]} Be8 {[%emt 0:00:02]} 31. Bxh5 {normal} 1-0